bitfinex/quotes_ETHUSD_20250406
["timestamp","ask_amount","ask_price","bid_price","bid_amount"]
[1743975630891,6.4132713,1589.2,1589.0,1.76468452]
[1743975631091,18.9986913,1589.2,1588.9,5.06015524]
[1743975631317,6.2929,1589.1,1588.9,5.06015524]
[1743975631640,12.7059513,1589.2,1588.7,0.89340124]
[1743975631641,0.38522844,1589.0,1588.7,0.89340124]
[1743975631785,0.38522844,1589.0,1588.6,11.62027365]
[1743975631786,6.29385,1588.9,1588.6,4.85810931]
[1743975631987,6.65871011,1588.8,1588.4,10.32357931]
[1743975632220,6.29478,1588.7,1588.4,4.02800931]
[1743975632420,0.36422484,1588.6,1588.4,10.32350931]
[1743975632620,6.29459,1588.7,1588.4,4.02800931]
[1743975632826,14.9587,1589.3,1588.9,6.29351]
[1743975633033,7.875,1589.4,1589.1,6.29284]
[1743975633201,6.2916,1589.5,1589.1,13.844139]
[1743975633399,6.35433016,1589.5,1589.2,6.29246]
[1743975634463,14.95711,1589.7,1589.2,4.02800931]
[1743975634634,12.7030113,1589.9,1589.4,6.29165]
[1743975634803,7.874,1589.8,1589.5,0.06290879]
[1743975635008,7.874,1589.8,1589.5,6.29124]
[1743975635204,7.874,1589.8,1589.5,12.58232]
[1743975635439,7.874,1589.8,1589.5,12.58221]
[1743975635758,12.7030113,1589.9,1589.5,12.58211]
[1743975635984,14.2872713,1589.9,1589.6,6.29087]
[1743975636128,14.2872713,1589.9,1589.6,10.31887931]
[1743975636326,6.4132713,1589.9,1589.6,10.31887931]
[1743975636759,12.7030013,1589.9,1589.6,4.02800931]
[1743975636919,6.4132713,1589.9,1589.6,10.31885931]
[1743975637848,6.2893,1590.0,1589.6,4.02800931]
[1743975638061,6.35203016,1590.0,1589.6,4.02800931]
[1743975638357,6.28988,1589.9,1589.6,4.02800931]
[1743975638562,6.2893,1590.0,1589.6,10.31875931]
[1743975638762,6.2893,1590.0,1589.6,4.02800931]
[1743975638763,6.29038,1589.8,1589.6,4.02800931]
[1743975638923,14.16149,1589.7,1589.6,4.02800931]
[1743975639666,17.16149,1589.7,1589.6,4.02800931]
[1743975640164,6.29169,1589.4,1589.0,10.32124931]
[1743975640366,12.5836,1589.4,1589.0,10.32124931]
[1743975640662,7.87,1589.3,1589.0,16.61413931]
[1743975640960,0.28065314,1589.2,1589.0,4.02800931]
[1743975641168,0.3433833,1589.2,1588.7,4.81270931]
[1743975641330,0.3433833,1589.2,1588.7,4.02800931]
[1743975641331,6.29341,1589.0,1588.7,4.02800931]
[1743975641531,7.869,1588.9,1588.7,4.02800931]
[1743975641748,8.14898894,1588.9,1588.7,4.02800931]
[1743975642158,8.14898894,1588.9,1588.7,10.32243931]
[1743975642375,8.14898894,1588.9,1588.7,4.02800931]
[1743975642935,8.14898894,1588.9,1588.7,10.32228931]
[1743975643276,8.14898894,1588.9,1588.7,16.61650931]
[1743975643454,0.27998894,1588.9,1588.8,6.29405]
[1743975643664,7.93073016,1589.1,1588.9,6.29354]
[1743975643981,0.27998894,1589.0,1588.9,6.29354]
[1743975644482,0.27998894,1589.0,1588.9,7.07824]
[1743975644782,0.27998894,1589.0,1588.9,7.6911692]
[1743975644978,0.27998894,1589.0,1588.9,13.59859619]
[1743975645276,6.4132713,1589.6,1589.2,6.29222]
[1743975645444,6.4132713,1589.6,1589.3,6.29199]
[1743975645860,6.4132713,1589.6,1589.2,10.32022931]
[1743975646084,6.4132713,1589.6,1589.2,16.61246931]
[1743975646393,6.4132713,1589.6,1589.4,7.11435]
[1743975646604,6.4132713,1589.6,1589.4,0.8227]
[1743975646902,6.4132713,1589.9,1589.7,6.29047]
[1743975647052,6.4132713,1589.9,1589.7,4.02800931]
[1743975647253,6.4132713,1589.9,1589.4,0.8227]
[1743975647254,0.06273016,1589.8,1589.4,7.11436]
[1743975647567,20.5711713,1589.9,1589.4,7.11436]
[1743975647872,20.5711713,1589.9,1589.5,6.84128]
[1743975648081,26.8611313,1589.9,1589.5,0.55]
[1743975648291,6.29013,1589.8,1589.5,0.55]
[1743975648506,6.29013,1589.8,1589.5,0.766416]
[1743975648667,6.29013,1589.8,1589.5,0.82931918]
[1743975649006,6.29013,1589.8,1589.5,0.766416]
[1743975649188,6.29013,1589.8,1589.4,7.11436]
[1743975649361,6.29013,1589.8,1589.4,0.8227]
[1743975649362,6.29056,1589.7,1589.4,0.8227]
[1743975649563,6.2909,1589.6,1589.4,0.8227]
[1743975650218,12.58203,1589.6,1589.4,0.8227]
[1743975650366,6.29168,1589.4,1589.2,4.02800931]
[1743975650568,6.29168,1589.4,1589.1,0.7529]
[1743975650999,6.29212,1589.3,1589.1,0.7529]
[1743975651215,6.29212,1589.3,1589.0,4.02800931]
[1743975651417,6.29261,1589.2,1589.0,4.02800931]
[1743975651771,6.35534016,1589.2,1589.0,4.02800931]
[1743975651969,6.29287,1589.1,1589.0,4.02800931]
[1743975652603,0.06273016,1589.1,1588.7,4.02800931]
[1743975652778,12.58686,1589.0,1588.7,4.02800931]
[1743975653167,6.29371,1588.9,1588.7,4.02800931]
[1743975653382,12.58677,1589.0,1588.7,4.02800931]
[1743975654017,7.864,1589.1,1588.7,5.14139124]
[1743975654227,14.15773,1589.2,1588.8,6.29377]
[1743975654582,6.29293,1589.1,1588.8,0.55]
[1743975655096,6.29293,1589.1,1588.8,6.84404]
[1743975655282,12.58609,1589.1,1588.7,10.32223931]
[1743975655477,12.58609,1589.1,1588.7,16.61648931]
[1743975655478,6.29293,1589.1,1588.7,16.61648931]
[1743975655715,12.64878016,1589.1,1588.7,12.06499824]
[1743975656019,0.23093821,1589.0,1588.7,12.06499824]
[1743975656784,0.23093821,1589.0,1588.7,4.02800931]
[1743975657009,0.23093821,1589.0,1588.7,10.32228931]
[1743975657409,6.52425821,1589.0,1588.7,4.02800931]
[1743975658297,6.58698837,1589.0,1588.7,4.02800931]
[1743975658497,6.29382,1588.9,1588.7,4.02800931]
[1743975658934,0.2318429,1588.8,1588.7,4.02800931]
[1743975659925,0.2318429,1588.8,1588.7,10.32245931]
[1743975660322,0.2318429,1588.8,1588.7,11.98417324]
[1743975660721,8.6542,1589.3,1589.0,6.29321]
[1743975660935,0.7912,1589.6,1589.2,6.29227]
[1743975661127,6.4132713,1589.7,1589.4,6.29154]
[1743975661611,6.4132713,1589.7,1589.4,0.0629058]
[1743975661810,6.4132713,1589.7,1589.6,6.84089]
[1743975662132,6.28985,1589.9,1589.6,2.34488393]
[1743975662716,12.57979,1589.9,1589.5,11.10794931]
[1743975662926,6.28985,1589.9,1589.5,11.10786931]
[1743975663160,12.57979,1589.9,1589.5,11.10786931]
[1743975663450,6.28985,1589.9,1589.5,11.10786931]
[1743975663621,6.29024,1589.8,1589.5,4.81680931]
[1743975663949,6.2897,1589.9,1589.5,4.81680931]
[1743975663950,6.2897,1589.9,1589.5,6.55680324]
[1743975664156,6.29029,1589.8,1589.5,6.55680324]
[1743975664923,6.29075,1589.7,1589.5,4.81680931]
[1743975665131,6.29029,1589.8,1589.5,4.81680931]
[1743975665332,12.58064,1589.8,1589.5,4.81680931]
[1743975665542,6.2905,1589.7,1589.5,4.81680931]
[1743975665730,12.58124,1589.7,1589.5,4.02800931]
[1743975665930,6.2905,1589.7,1589.5,4.02800931]
[1743975666144,6.29104,1589.6,1589.3,0.7599]
[1743975666416,6.29132,1589.5,1589.3,1.334458]
[1743975666623,6.35379016,1589.6,1589.2,6.29226]
[1743975666858,6.29133,1589.5,1589.2,6.29226]
[1743975667037,6.29133,1589.5,1589.1,17.37330931]
[1743975667038,6.35406016,1589.5,1589.1,17.37330931]
[1743975667232,6.35406016,1589.5,1589.1,17.37332931]
[1743975667428,6.35406016,1589.5,1589.1,11.08060931]
[1743975667831,6.2917,1589.4,1589.1,4.78790931]
[1743975668853,14.15031,1589.3,1589.1,4.78790931]
[1743975669162,14.15031,1589.3,1589.1,4.02800931]
[1743975670334,6.29247,1589.2,1589.1,4.02800931]
[1743975670864,6.55491921,1589.2,1589.1,4.02800931]
[1743975671024,6.29351,1589.0,1588.6,11.07439931]
[1743975671223,14.34996084,1588.9,1588.6,11.07439931]
[1743975672658,8.05624084,1588.9,1588.6,11.07439931]
[1743975672864,0.19924084,1588.9,1588.7,6.29432]
[1743975673031,14.21193016,1589.3,1588.9,6.29348]
[1743975673232,0.19842775,1589.2,1589.0,1.3555]
[1743975673438,6.52843988,1589.5,1589.4,0.55]
[1743975673637,7.04165,1590.0,1589.6,6.29059]
[1743975673638,14.89865,1590.0,1589.6,6.29059]
[1743975673843,14.89865,1590.0,1589.6,13.210389]
[1743975674246,21.1882,1590.0,1589.6,6.919649]
[1743975674728,6.28971,1589.9,1589.6,6.919649]
[1743975675325,3.0,1590.1,1589.8,6.28989]
[1743975675636,7.856,1590.1,1589.8,17.86583931]
[1743975675959,6.28855,1590.2,1589.8,17.86583931]
[1743975676167,8.6589,1590.3,1590.0,6.28903]
[1743975676321,8.6589,1590.3,1589.8,6.10542931]
[1743975676322,6.28857,1590.2,1589.8,6.10542931]
[1743975676525,12.57745,1590.2,1589.8,11.13733931]
[1743975676727,6.56764761,1589.9,1589.8,11.68733931]
[1743975677463,6.56764761,1589.9,1589.8,4.02800931]
[1743975679149,12.57904,1590.0,1589.8,4.02800931]
[1743975679643,6.2897,1589.9,1589.8,4.02800931]
[1743975680861,14.1427,1589.9,1589.8,4.02800931]
[1743975681362,7.853,1589.9,1589.8,4.02800931]
[1743975681668,14.1427,1589.9,1589.8,4.02800931]
[1743975682544,20.43271,1589.9,1589.6,4.84740931]
[1743975682858,6.29049,1589.7,1589.4,0.7879]
[1743975683166,6.29049,1589.7,1589.3,10.31988931]
[1743975683167,0.06273016,1589.8,1589.3,4.02800931]
[1743975683331,6.29117,1589.6,1589.3,4.02800931]
[1743975683826,6.29168,1589.4,1589.3,4.02800931]
[1743975684762,6.29231,1589.3,1589.0,4.02800931]
[1743975685131,12.58461,1589.3,1588.9,7.08139]
[1743975685328,12.58461,1589.3,1588.9,8.88467213]
[1743975685531,6.2925,1589.2,1588.9,1.80328213]
[1743975685732,6.47405719,1589.2,1588.9,1.80328213]
[1743975686135,12.76675719,1589.2,1588.9,1.80328213]
[1743975686343,7.85,1589.1,1588.8,10.95131131]
[1743975686656,0.18361835,1589.0,1588.9,6.29365]
[1743975686842,0.18361835,1589.0,1588.8,17.24515131]
[1743975687055,0.18361835,1589.0,1588.9,6.29366]
[1743975687281,0.18361835,1589.0,1588.9,8.01815413]
[1743975688571,0.18361835,1589.0,1588.9,8.56815413]
[1743975688756,0.18361835,1589.0,1588.9,16.35226344]
[1743975688960,6.56680782,1589.4,1589.3,7.04817]
[1743975689143,6.56680782,1589.4,1589.3,7.59817]
[1743975689347,6.75042617,1589.4,1589.3,8.987216]
[1743975689556,6.75042617,1589.4,1589.3,11.987216]
[1743975689756,0.18361835,1589.4,1589.3,11.987216]
[1743975690136,7.849,1589.7,1589.6,6.29089]
[1743975690678,0.16661887,1589.7,1589.6,6.29089]
[1743975690971,14.13772,1589.9,1589.6,7.549106]
[1743975691136,0.16661887,1589.7,1589.6,7.549106]
[1743975691336,14.13772,1589.9,1589.6,7.549106]
[1743975691538,0.16661887,1589.7,1589.6,7.549106]
[1743975691738,14.13772,1589.9,1589.6,1.258216]
[1743975691938,0.16661887,1589.7,1589.6,1.258216]
[1743975692179,14.13772,1589.9,1589.6,7.549056]
[1743975692343,14.13772,1589.9,1589.5,0.55]
[1743975692344,0.16661887,1589.7,1589.5,0.55]
[1743975692543,12.58078,1589.8,1589.5,0.55]
[1743975692767,0.16661887,1589.6,1589.3,18.75704531]
[1743975692980,6.29076,1589.7,1589.3,18.75704531]
[1743975693180,6.29127,1589.6,1589.3,4.78410931]
[1743975693477,14.13841,1589.5,1589.3,4.02800931]
[1743975693686,6.29168,1589.4,1589.3,4.02800931]
[1743975693863,6.45829887,1589.4,1589.3,4.02800931]
[1743975694063,6.2922,1589.3,1589.0,6.29312]
[1743975694264,8.6491,1589.5,1588.9,2.55179413]
[1743975694265,14.9405,1589.5,1588.9,2.55179413]
[1743975694473,6.29265,1589.2,1588.8,16.61571931]
[1743975694778,0.16738714,1589.1,1588.9,6.29349]
[1743975694980,0.16738714,1589.1,1589.0,6.29326]
[1743975695292,6.29209,1589.3,1589.0,6.29326]
[1743975695588,0.16738714,1589.2,1589.0,6.29313]
[1743975696278,0.16738714,1589.2,1588.9,12.58695]
[1743975696573,0.16738714,1589.2,1589.0,6.29325]
[1743975696781,6.46008714,1589.2,1588.8,4.57800931]
[1743975696979,0.16738714,1589.2,1588.9,6.2935]
[1743975697183,0.16738714,1589.2,1589.0,12.58626]
[1743975697484,6.56516143,1589.4,1589.1,12.58574]
[1743975697665,0.13947368,1589.3,1589.1,12.58574]
[1743975697873,0.13947368,1589.3,1589.2,11.66557931]
[1743975698083,6.56516143,1589.4,1589.3,6.84207]
[1743975698410,0.7705,1590.2,1589.9,6.28964]
[1743975698557,0.83323016,1590.2,1589.9,10.31751931]
[1743975698757,0.13947476,1590.1,1590.0,6.28925]
[1743975699060,7.845,1590.3,1589.9,10.31751931]
[1743975699261,0.13947476,1590.2,1589.9,11.97827424]
[1743975699574,0.13947476,1590.2,1589.9,18.26776424]
[1743975700496,0.13947476,1590.2,1590.0,6.28929]
[1743975700677,0.13947476,1590.2,1590.0,6.28916]
[1743975701256,0.13947476,1590.2,1590.0,12.57827]
[1743975701461,0.13947476,1590.2,1590.0,12.57823]
[1743975701658,8.67723016,1590.4,1590.0,12.57823]
[1743975701860,0.13947476,1590.3,1590.0,12.57823]
[1743975702108,8.67723016,1590.4,1590.0,12.57823]
[1743975702401,0.13947476,1590.3,1590.0,12.57823]
[1743975702696,8.67723016,1590.4,1590.0,12.57829]
[1743975702894,8.67723016,1590.4,1590.0,8.11600542]
[1743975703072,0.13947476,1590.3,1590.2,12.5766]
[1743975703254,7.842,1590.5,1590.2,12.5766]
[1743975703469,0.13947476,1590.4,1590.2,12.5766]
[1743975703669,0.8051,1590.7,1590.4,6.28744]
[1743975703919,0.06273016,1590.8,1590.6,6.28654]
[1743975704204,7.842,1590.9,1590.7,6.28654]
[1743975704408,7.842,1590.9,1590.8,6.28614]
[1743975704908,7.841,1591.6,1591.4,6.28359]
[1743975705092,7.841,1591.6,1591.5,6.28338]
[1743975705709,8.70783016,1591.8,1591.5,6.28338]
[1743975705925,8.70783016,1591.8,1591.7,6.28259]
[1743975705926,7.84,1591.8,1591.7,6.28259]
[1743975706324,0.83223016,1592.1,1591.9,6.2817]
[1743975706630,6.0,1592.6,1592.1,6.2807]
[1743975706631,0.7695,1592.3,1592.1,6.2807]
[1743975706799,0.7695,1592.3,1592.2,6.28061]
[1743975707201,7.839,1592.5,1592.3,6.28022]
[1743975707405,7.839,1592.5,1592.3,6.27998]
[1743975707629,7.839,1592.5,1592.4,6.27982]
[1743975707829,7.839,1592.5,1592.1,6.34369934]
[1743975707830,7.839,1592.5,1592.1,6.28082]
[1743975707997,0.06273016,1592.4,1592.1,6.2808]
[1743975708195,0.06273016,1592.4,1592.2,6.28046]
[1743975708415,0.06273016,1592.4,1592.3,6.28022]
[1743975708619,7.839,1592.5,1592.2,6.28046]
[1743975708620,7.90173016,1592.5,1592.2,6.28046]
[1743975708925,0.06273016,1592.5,1592.1,0.55]
[1743975709118,0.7695,1592.6,1592.2,6.28037]
[1743975709424,0.06273016,1592.5,1592.3,6.28007]
[1743975709728,0.06273016,1592.5,1592.4,6.27982]
[1743975710028,0.83223016,1592.6,1592.4,6.27982]
[1743975710416,0.83223016,1592.6,1592.3,6.28002]
[1743975710795,0.83223016,1592.6,1592.2,6.963427]
[1743975711021,0.83223016,1592.6,1592.2,6.28039]
[1743975712008,7.11132016,1592.6,1592.1,6.28064]
[1743975712194,7.11132016,1592.6,1592.1,6.908704]
[1743975712424,7.11132016,1592.6,1592.2,6.2806]
[1743975712734,0.83223016,1592.6,1592.2,6.2806]
[1743975712931,0.83223016,1592.6,1592.2,6.28047]
[1743975713913,7.11131016,1592.6,1592.2,6.28047]
[1743975714309,7.11131016,1592.6,1592.1,6.909014]
[1743975714638,7.11131016,1592.6,1592.2,6.28047]
[1743975714936,7.11127016,1592.6,1592.2,6.28047]
[1743975715137,14.93927016,1592.6,1592.2,7.5993444]
[1743975715345,14.87654,1592.6,1592.2,1.3189344]
[1743975715639,0.06273016,1592.5,1592.2,7.5993644]
[1743975715809,0.210258,1592.5,1592.2,6.28043]
[1743975716140,0.210258,1592.5,1591.9,6.9099]
[1743975716141,0.210258,1592.5,1592.0,6.2814]
[1743975716345,0.210258,1592.5,1591.9,6.9099]
[1743975716346,0.210258,1592.5,1592.2,6.28045]
[1743975716640,0.210258,1592.5,1592.2,12.56093]
[1743975717119,0.210258,1592.5,1592.3,6.28004]
[1743975717447,0.210258,1592.5,1592.4,6.27982]
[1743975717448,0.14752784,1592.5,1592.4,6.27982]
[1743975717734,0.06273016,1592.8,1592.7,6.27864]
[1743975718034,0.1461945,1592.8,1592.6,12.55772]
[1743975718240,0.81793016,1593.2,1593.0,12.55459]
[1743975718449,0.81793016,1593.2,1593.1,6.27706]
[1743975718817,0.7552,1593.2,1593.1,6.27706]
[1743975719160,7.88773016,1593.3,1593.2,6.27667]
[1743975719450,7.825,1593.3,1593.2,6.27667]
[1743975719650,0.06273016,1593.6,1593.4,6.27571]
[1743975719817,2.72933838,1594.4,1593.4,6.88858936]
[1743975719818,0.7552,1594.0,1593.4,6.88858936]
[1743975720014,0.06273016,1593.9,1593.7,6.27452]
[1743975720349,0.06273016,1593.9,1593.6,6.27509]
[1743975720646,14.15871016,1593.9,1593.5,6.27528]
[1743975720838,6.2756,1593.5,1593.1,6.27681]
[1743975721048,14.16079016,1593.4,1593.0,6.27744]
[1743975721243,0.7665,1593.2,1592.9,6.27782]
[1743975721459,0.06273016,1593.1,1592.9,6.27782]
[1743975721762,3.0,1592.9,1592.6,6.279]
[1743975721923,0.06273016,1592.8,1592.5,6.27923]
[1743975722130,0.7574,1592.7,1592.4,6.27981]
[1743975722329,7.88373016,1592.6,1592.4,6.27981]
[1743975722832,7.88373016,1592.6,1592.3,6.27998]
[1743975723038,7.88373016,1592.6,1592.4,6.27955]
[1743975724740,7.88373016,1592.6,1592.4,12.55914]
[1743975725152,6.7555,1593.0,1592.4,1.255914]
[1743975725459,0.81823016,1593.0,1592.8,12.55621]
[1743975725659,0.81823016,1593.0,1592.8,6.27803]
[1743975725957,0.81823016,1593.0,1592.8,12.55614]
[1743975726352,0.06273016,1593.0,1592.9,6.27785]
[1743975727151,7.88073016,1593.3,1593.1,6.27706]
[1743975727463,7.818,1593.3,1593.1,6.27706]
[1743975728262,7.818,1593.3,1593.2,6.27667]
[1743975728263,10.818,1593.3,1593.2,6.27667]
[1743975728432,7.87973016,1593.5,1593.2,6.2765]
[1743975728633,7.87973016,1593.5,1593.2,6.27648]
[1743975728837,7.87973016,1593.5,1593.2,12.55302]
[1743975729681,7.87973016,1593.5,1593.2,6.27648]
[1743975729853,7.87973016,1593.5,1593.0,6.27727]
[1743975729854,9.37077218,1593.5,1593.0,6.27727]
[1743975730050,15.64631218,1593.5,1592.8,6.27812]
[1743975730280,6.27621,1593.4,1592.9,6.27746]
[1743975730479,0.06273016,1593.3,1593.0,6.27719]
[1743975730680,0.06273016,1593.3,1593.1,6.2769]
[1743975730978,0.15947381,1593.2,1593.1,12.55376]
[1743975731673,0.06273016,1593.4,1593.1,12.55376]
[1743975731968,0.15947381,1593.3,1593.2,6.27667]
[1743975732135,0.15947381,1593.3,1593.1,7.610566]
[1743975732341,0.06273016,1593.4,1593.1,13.887456]
[1743975732541,0.15947381,1593.3,1593.1,6.27686]
[1743975732742,0.06273016,1593.4,1593.1,6.27686]
[1743975733070,0.15947381,1593.3,1593.1,6.27686]
[1743975733267,0.15947381,1593.3,1593.0,6.27746]
[1743975733468,0.22220397,1593.2,1592.9,6.27766]
[1743975733663,6.49906397,1593.2,1592.9,6.27766]
[1743975733857,0.22220397,1593.2,1593.0,6.27729]
[1743975734063,0.22220397,1593.2,1593.1,6.27706]
[1743975734243,0.15947381,1593.2,1593.1,6.27706]
[1743975734443,0.15947381,1593.2,1593.0,12.55456]
[1743975734637,0.15947381,1593.2,1593.0,12.55454]
[1743975734837,0.15947381,1593.2,1593.0,6.27727]
[1743975735040,0.15947381,1593.2,1592.9,6.27772]
[1743975735254,0.15947381,1593.2,1593.0,6.27731]
[1743975736275,0.15947381,1593.2,1592.9,6.987032]
[1743975736479,6.43616381,1593.2,1592.9,6.986932]
[1743975736667,0.06273016,1593.1,1592.9,6.986932]
[1743975737066,0.15947381,1593.0,1592.9,6.986932]
[1743975737574,0.22220397,1593.0,1592.8,12.55615]
[1743975738574,0.15947381,1593.0,1592.7,6.27837]
[1743975738874,0.06273016,1592.9,1592.7,6.27837]
[1743975739355,0.15947381,1592.8,1592.7,12.55689]
[1743975739692,0.8093,1592.9,1592.0,0.7502]
[1743975739864,3.0,1592.6,1592.0,7.03145]
[1743975740174,6.28042,1592.3,1591.9,6.28161]
[1743975740375,0.22220397,1592.2,1592.0,0.628161]
[1743975740882,0.22220397,1592.2,1592.0,6.909561]
[1743975742392,0.15947381,1592.2,1592.1,6.28101]
[1743975742552,0.15947381,1592.2,1592.1,6.83101]
[1743975742746,10.87073016,1592.6,1592.3,6.28001]
[1743975742988,0.16163581,1592.5,1592.3,6.28001]
[1743975743572,0.16163581,1592.5,1592.2,6.28058]
[1743975743772,6.44121581,1592.5,1592.2,6.28058]
[1743975744074,6.50394597,1592.5,1592.2,6.28058]
[1743975744300,6.50394597,1592.5,1592.2,12.56106]
[1743975744467,0.22436597,1592.5,1592.2,13.817166]
[1743975744789,6.27985,1592.4,1592.2,1.256106]
[1743975745002,0.22436597,1592.5,1592.2,7.536546]
[1743975745166,0.06273016,1592.5,1592.4,6.27982]
[1743975745370,0.16163581,1592.5,1592.4,6.27982]
[1743975746170,0.16163581,1592.5,1592.3,6.2801]
[1743975746370,0.16163581,1592.5,1592.3,6.28007]
[1743975746572,0.16163581,1592.5,1592.4,6.27982]
[1743975747112,0.16163581,1592.5,1592.4,7.535809]
[1743975747398,0.16163581,1592.5,1592.4,15.91011831]
[1743975747708,0.06273016,1593.2,1593.1,6.27706]
[1743975747902,0.13488971,1593.2,1593.1,6.27706]
[1743975748197,0.13488971,1593.2,1593.1,7.532505]
[1743975748977,0.13488971,1593.2,1593.1,1.255445]
[1743975749298,0.13488971,1593.2,1593.1,7.532505]
[1743975751513,0.13488971,1593.2,1593.1,1.255445]
[1743975752012,0.13488971,1593.2,1593.1,7.532505]
[1743975752577,0.13488971,1593.2,1593.1,1.255445]
[1743975752780,0.13488971,1593.2,1593.1,7.532505]
[1743975752980,0.13488971,1593.2,1593.1,1.255445]
[1743975753581,0.13488971,1593.2,1593.0,6.2773]
[1743975753777,0.13488971,1593.2,1592.9,7.07415]
[1743975754090,6.47436987,1593.2,1592.9,0.7963]
[1743975754618,6.2771,1593.1,1592.9,0.7963]
[1743975754909,0.13498579,1593.0,1592.8,12.5562]
[1743975755103,0.19771595,1593.0,1592.8,14.21457093]
[1743975755300,0.19771595,1593.0,1592.8,7.93648093]
[1743975755616,0.13498579,1593.0,1592.8,14.21457093]
[1743975755793,0.13498579,1593.0,1592.8,6.27806]
[1743975756189,0.06273016,1592.9,1592.6,6.27885]
[1743975756515,0.13498579,1592.8,1592.6,6.27885]
[1743975756714,6.34070016,1592.9,1592.5,6.27935]
[1743975756917,0.13498579,1592.8,1592.6,6.27898]
[1743975757113,0.06273016,1592.9,1592.5,7.51851483]
[1743975757300,6.27864,1592.7,1592.3,6.28007]
[1743975757505,6.34137016,1592.7,1592.3,6.28007]
[1743975757811,6.41556327,1592.6,1592.3,8.02176593]
[1743975758322,6.47829343,1592.6,1592.3,14.30180593]
[1743975758722,6.47829343,1592.6,1592.3,8.02173593]
[1743975759246,0.19925343,1592.6,1592.4,6.27964]
[1743975759537,0.19925343,1592.6,1592.5,6.27943]
[1743975759538,0.13652327,1592.6,1592.5,6.27943]
[1743975759840,0.06273016,1592.8,1592.5,1.26218672]
[1743975760038,0.06273016,1592.8,1592.6,12.55776]
[1743975760240,0.06273016,1592.8,1592.6,6.27886]
[1743975760540,21.17079,1593.0,1592.7,6.27864]
[1743975760541,7.86073016,1592.9,1592.7,6.27864]
[1743975760705,0.13546632,1592.8,1592.7,6.27864]
[1743975761034,7.86073016,1592.9,1592.7,6.27864]
[1743975761195,0.13546632,1592.8,1592.7,6.27864]
[1743975761401,0.13546632,1592.8,1592.7,7.61194]
[1743975761708,7.86073016,1592.9,1592.8,6.27825]
[1743975761918,7.798,1592.9,1592.8,6.27825]
[1743975762127,14.88826,1593.2,1592.9,6.27785]
[1743975762335,7.09045,1593.4,1593.0,6.27732]
[1743975762635,0.06273016,1593.3,1593.1,6.27688]
[1743975763536,0.06273016,1593.3,1593.0,13.33021]
[1743975764117,0.06273016,1593.3,1593.1,6.27701]
[1743975764810,6.33901016,1593.3,1593.0,7.05282]
[1743975765008,0.06273016,1593.3,1593.0,14.663219]
[1743975765230,6.33904016,1593.3,1593.0,8.385879]
[1743975765703,6.27684,1593.2,1593.0,1.333059]
[1743975765899,6.27684,1593.2,1592.9,6.27769]
[1743975766133,12.61647016,1593.2,1592.9,6.27769]
[1743975766323,12.55372,1593.2,1592.8,12.55602]
[1743975766637,12.5538,1593.2,1592.8,12.55602]
[1743975766824,12.5538,1593.2,1592.8,14.022502]
[1743975767335,6.27713,1593.1,1592.8,14.022452]
[1743975767538,0.06273016,1593.1,1592.8,7.744382]
[1743975767845,6.33987016,1593.1,1592.8,7.744382]
[1743975768509,6.33987016,1593.1,1592.7,8.38728]
[1743975768711,14.13282016,1593.1,1592.8,6.27815]
[1743975768917,20.34735,1593.1,1592.8,6.27815]
[1743975769234,20.34747,1593.1,1592.7,7.61178]
[1743975769405,14.07009,1593.1,1592.8,6.27815]
[1743975769606,7.793,1593.1,1592.8,7.667143]
[1743975769807,7.85573016,1593.1,1592.9,6.27761]
[1743975770006,0.06273016,1593.1,1592.9,12.55532]
[1743975770238,0.06273016,1593.1,1592.9,6.27761]
[1743975770537,0.06273016,1593.1,1592.9,7.6720903]
[1743975770740,3.47965471,1593.6,1593.0,7.02806]
[1743975771030,20.40513016,1593.5,1593.2,6.27666]
[1743975771234,14.06667,1593.5,1593.1,6.27691]
[1743975771429,6.2759,1593.4,1593.1,6.27691]
[1743975771603,0.06273016,1593.3,1593.1,13.884289]
[1743975771809,20.34235,1593.5,1593.1,13.884289]
[1743975771810,14.06667,1593.5,1593.2,6.2766]
[1743975772337,0.06273016,1593.4,1593.2,6.2766]
[1743975772528,0.06273016,1593.4,1593.1,7.607379]
[1743975772731,0.06273016,1593.4,1593.2,7.0371079]
[1743975773042,6.33839016,1593.5,1593.2,7.0371079]
[1743975773752,12.61407016,1593.5,1593.2,0.7607379]
[1743975773930,12.55134,1593.5,1593.2,0.7607379]
[1743975774124,0.06273016,1593.4,1593.2,0.7607379]
[1743975774346,0.06273016,1593.4,1593.1,13.884309]
[1743975774726,0.06273016,1593.4,1593.1,13.884269]
[1743975774930,6.33866016,1593.4,1593.1,7.607369]
[1743975775731,0.12521849,1593.3,1593.1,7.607369]
[1743975775926,6.33866016,1593.4,1593.1,7.607369]
[1743975776127,0.12521849,1593.3,1593.1,6.27688]
[1743975776453,14.84606,1593.5,1593.1,6.27688]
[1743975776624,0.12521849,1593.2,1593.1,6.27688]
[1743975776825,14.84606,1593.5,1593.2,6.27666]
[1743975778327,6.2763,1593.3,1593.0,10.30530931]
[1743975778532,6.2763,1593.3,1593.0,18.38040027]
[1743975778732,6.2763,1593.3,1593.0,10.30530931]
[1743975778933,0.06273016,1593.2,1592.9,6.27774]
[1743975779133,0.06273016,1593.2,1593.0,6.27728]
[1743975779340,6.33877016,1593.4,1593.0,6.27728]
[1743975779537,6.27629,1593.3,1593.0,6.905008]
[1743975779725,6.33877016,1593.4,1593.0,6.905008]
[1743975779726,6.27604,1593.4,1593.1,6.27698]
[1743975780053,12.61491016,1593.4,1593.0,13.182328]
[1743975780245,12.55218,1593.4,1593.0,13.182338]
[1743975780445,0.06273016,1593.3,1593.0,13.182338]
[1743975780662,6.33901016,1593.3,1593.0,13.182288]
[1743975780960,0.06273016,1593.3,1593.0,6.905008]
[1743975781159,0.06273016,1593.3,1593.0,13.182348]
[1743975781339,0.06273016,1593.3,1593.0,13.182318]
[1743975781540,0.06273016,1593.3,1593.0,6.905008]
[1743975781860,0.06273016,1593.3,1593.0,13.182328]
[1743975782260,0.06273016,1593.3,1593.1,6.27693]
[1743975782459,8.5704,1593.5,1593.2,6.27667]
[1743975782634,6.27591,1593.4,1593.1,7.40895557]